bitfinex/quotes_SOLUSD_20240717
["timestamp","ask_amount","ask_price","bid_price","bid_amount"]
[1721204225114,6.2217,160.73,160.68,6.2233]
[1721204225306,6.2216,160.73,160.68,6.2234]
[1721204225532,6.2212,160.74,160.69,6.2231]
[1721204226028,7.77705072,160.73,160.69,6.2231]
[1721204226226,1.55560626,160.72,160.67,6.2235]
[1721204226429,7.77760626,160.72,160.68,6.2235]
[1721204226613,7.77760626,160.72,160.64,22.104]
[1721204226614,6.222,160.72,160.64,22.104]
[1721204227214,6.2217,160.73,160.68,6.2233]
[1721204227413,1.55563354,160.72,160.68,6.2234]
[1721204227819,7.77680997,160.75,160.7,6.2225]
[1721204228017,1.55570997,160.75,160.67,0.17]
[1721204228221,1.55570997,160.75,160.68,6.2234]
[1721204228529,6.2217,160.73,160.68,6.2234]
[1721204228735,1.55570819,160.72,160.68,6.2234]
[1721204229332,7.77780819,160.72,160.68,6.2234]
[1721204229633,1.5557924,160.71,160.67,6.2239]
[1721204229834,6.222,160.72,160.67,6.2239]
[1721204230133,7.77847655,160.71,160.66,6.2241]
[1721204230329,1.55591299,160.7,160.66,6.2241]
[1721204230635,1.55591299,160.7,160.67,6.2238]
[1721204230835,1.55591299,160.7,160.68,6.2232]
[1721204231024,1.55589112,160.72,160.64,15.8591]
[1721204231229,29.83,160.74,160.64,15.8591]
[1721204231230,6.2232,160.69,160.64,22.0841]
[1721204231551,1.55616342,160.68,160.64,6.225]
[1721204231834,7.78049234,160.67,160.62,6.2255]
[1721204232630,6.2243,160.66,160.62,6.2255]
[1721204232831,7.78066012,160.66,160.62,6.2255]
[1721204233035,1.55638548,160.65,160.62,6.2255]
[1721204233407,1.55638946,160.64,160.6,21.9197]
[1721204233606,29.83,160.68,160.59,6.2269]
[1721204233831,6.2253,160.64,160.59,6.2269]
[1721204234036,1.55662532,160.63,160.59,6.2269]
[1721204234837,1.55662532,160.63,160.58,6.50580143]
[1721204235133,1.55657783,160.64,160.61,6.2261]
[1721204235344,6.2245,160.66,160.62,6.2256]
[1721204235542,1.55650628,160.65,160.62,6.2256]
[1721204235712,1.55643269,160.64,160.58,6.50580143]
[1721204236127,1.55660612,160.67,160.58,6.50580143]
[1721204236328,7.78060612,160.67,160.59,46.24260484]
[1721204236644,7.78060612,160.67,160.63,6.2254]
[1721204236645,1.55660612,160.67,160.63,6.2254]
[1721204236829,7.78060612,160.67,160.62,6.2257]
[1721204237016,6.224,160.67,160.62,6.2257]
[1721204237217,6.224,160.67,160.63,6.2254]
[1721204237539,6.224,160.67,160.62,6.2257]
[1721204237716,6.0222,160.69,160.63,6.2254]
[1721204237924,7.77986106,160.68,160.63,6.2254]
[1721204238123,1.55626309,160.67,160.63,6.2254]
[1721204238331,7.78026309,160.67,160.63,6.2254]
[1721204238645,7.78026309,160.67,160.59,45.0]
[1721204238646,6.2244,160.66,160.59,45.0]
[1721204239147,1.55626309,160.67,160.63,6.2252]
[1721204239518,7.78036309,160.67,160.63,6.2252]
[1721204239725,6.2241,160.67,160.63,6.2252]
[1721204240221,6.2236,160.68,160.64,6.225]
[1721204240538,6.2246,160.66,160.59,45.0]
[1721204240730,1.55622745,160.7,160.6,0.17]
[1721204240917,1.55622745,160.7,160.6,0.34]
[1721204241125,6.2246,160.66,160.61,6.2262]
[1721204241325,7.78107086,160.65,160.61,6.2262]
[1721204241659,1.55631515,160.64,160.58,6.50374851]
[1721204242155,6.2266,160.6,160.56,21.4402]
[1721204242325,1.5568495,160.59,160.56,15.2121]
[1721204242520,1.5568495,160.59,160.55,0.8364381]
[1721204242521,1.5568495,160.59,160.55,7.0646381]
[1721204242850,7.7838495,160.59,160.55,7.0646381]
[1721204243053,7.78437032,160.58,160.55,0.8364381]
[1721204243236,7.78517541,160.57,160.55,0.8364381]
[1721204243554,6.2281,160.57,160.55,0.8364381]
[1721204243850,6.2282,160.56,160.55,0.8364381]
[1721204244646,6.2278,160.57,160.55,0.8364381]
[1721204245652,6.2282,160.56,160.55,0.8364381]
[1721204245949,6.2279,160.57,160.55,0.8364381]
[1721204246852,15.5661,160.61,160.55,0.8364381]
[1721204246853,6.2275,160.58,160.55,0.8364381]
[1721204247145,6.2271,160.59,160.55,0.8364381]
[1721204247328,1.55705705,160.58,160.55,0.8364381]
[1721204247741,7.78445705,160.58,160.55,0.8364381]
[1721204247946,6.2274,160.58,160.55,0.8364381]
[1721204248241,1.55706058,160.57,160.55,0.8364381]
[1721204248450,1.55719398,160.6,160.55,0.8364381]
[1721204248624,6.2281,160.57,160.55,0.8364381]
[1721204248956,6.2282,160.56,160.55,0.8364381]
[1721204259233,7.95585457,160.56,160.55,0.8364381]
[1721204259453,8.12585457,160.56,160.55,0.8364381]
[1721204260948,7.78585457,160.56,160.55,0.8364381]
[1721204261339,7.95585457,160.56,160.55,0.8364381]
[1721204261552,8.12585457,160.56,160.55,0.8364381]
[1721204263052,7.78585457,160.56,160.55,0.8364381]
[1721204263450,8.12585457,160.56,160.55,0.8364381]
[1721204263837,53.12585457,160.56,160.55,0.8364381]
[1721204264032,8.12585457,160.56,160.55,0.8364381]
[1721204266266,59.59585457,160.56,160.55,3.81e-05]
[1721204269959,53.36765457,160.56,160.47,15.3988]
[1721204270268,0.34,160.55,160.47,15.3988]
[1721204270578,6.2304,160.51,160.47,15.3988]
[1721204270861,1.55778717,160.5,160.47,15.3988]
[1721204271076,1.55778717,160.5,160.47,21.6303]
[1721204271238,1.55776953,160.51,160.47,21.6301]
[1721204271442,1.55776586,160.51,160.48,6.2309]
[1721204271644,1.55768903,160.52,160.47,16.64278454]
[1721204271873,6.2294,160.53,160.48,6.231]
[1721204272076,1.55767909,160.52,160.48,6.231]
[1721204272240,1.55767949,160.51,160.47,30.9776]
[1721204272445,1.55764538,160.56,160.47,15.3988]
[1721204272660,1.55764538,160.56,160.45,16.48021836]
[1721204272661,1.55723818,160.59,160.55,6.2285]
[1721204273148,1.55723818,160.59,160.54,6.2289]
[1721204273761,7.78433818,160.59,160.54,6.2289]
[1721204273964,6.2271,160.59,160.53,7.47486925]
[1721204274185,29.83,160.62,160.53,1.24566925]
[1721204274350,6.2274,160.59,160.53,6.2292]
[1721204274779,6.2279,160.57,160.52,15.5737]
[1721204275079,6.2279,160.57,160.5,15.0895]
[1721204275080,1.55724318,160.56,160.5,15.0895]
[1721204275256,6.2278,160.57,160.51,7.4759532]
[1721204275455,7.78547689,160.56,160.5,22.56552151]
[1721204275652,7.78547689,160.56,160.5,21.3197]
[1721204275852,1.55727689,160.56,160.5,36.8952]
[1721204276058,1.55727689,160.56,160.51,6.23]
[1721204276472,1.55727689,160.56,160.5,30.665]
[1721204276473,1.5573375,160.55,160.5,36.8954]
[1721204276671,1.55733719,160.55,160.51,6.2301]
[1721204276867,1.55733719,160.55,160.52,6.2295]
[1721204277067,1.55733463,160.57,160.53,6.2292]
[1721204277282,1.55733463,160.57,160.52,6.2296]
[1721204277462,1.55733463,160.57,160.53,6.2292]
[1721204277658,1.55733463,160.57,160.5,30.665]
[1721204277659,7.78513463,160.57,160.52,6.2296]
[1721204277868,1.55733463,160.57,160.52,6.2296]
[1721204278067,1.55727576,160.57,160.52,15.5736]
[1721204278375,6.227,160.59,160.53,0.97598791]
[1721204278562,6.227,160.59,160.52,15.5736]
[1721204278767,6.227,160.59,160.53,6.2293]
[1721204279388,6.2275,160.58,160.53,6.2293]
[1721204279568,1.55710049,160.57,160.53,6.2293]
[1721204280093,1.55710049,160.57,160.54,6.2288]
[1721204280388,6.2266,160.6,160.55,6.2283]
[1721204280591,1.55705158,160.59,160.5,15.0895]
[1721204280794,6.2274,160.58,160.51,45.17]
[1721204280970,1.55710011,160.57,160.51,45.17]
[1721204281164,1.55710254,160.61,160.53,6.2292]
[1721204281365,1.55710471,160.6,160.53,6.2292]
[1721204281564,1.55710471,160.6,160.52,6.2296]
[1721204281767,6.2285,160.56,160.51,6.2301]
[1721204281989,1.55727881,160.55,160.51,6.2301]
[1721204282383,6.2294,160.53,160.5,15.0895]
[1721204282584,1.55762967,160.52,160.5,15.0895]
[1721204282777,15.571,160.56,160.47,6.48125233]
[1721204282982,1.55774461,160.55,160.47,12.71285233]
[1721204283178,1.55774047,160.54,160.48,6.2312]
[1721204283403,1.55774047,160.54,160.47,12.71285233]
[1721204283604,1.55774047,160.54,160.47,6.48125233]
[1721204283776,6.2302,160.51,160.47,6.48125233]
[1721204283975,1.55778851,160.5,160.47,6.48125233]
[1721204284394,1.55778851,160.5,160.46,37.7069]
[1721204284609,6.2297,160.52,160.47,6.2315]
[1721204284771,1.55778261,160.51,160.47,12.71315192]
[1721204285697,1.55778261,160.51,160.47,13.95938191]
[1721204285866,1.55778261,160.51,160.47,13.95933988]
[1721204286070,1.55775735,160.55,160.49,6.2308]
[1721204286280,1.55758532,160.54,160.48,15.5777]
[1721204286479,1.55758532,160.54,160.5,6.2305]
[1721204286780,6.2282,160.56,160.51,7.47589189]
[1721204286990,7.78597092,160.55,160.51,6.23]
[1721204287184,6.2286,160.55,160.5,21.8061]
[1721204287696,7.78636489,160.54,160.5,15.5757]
[1721204287895,1.55740495,160.58,160.51,1.19340843]
[1721204288093,1.55735275,160.57,160.5,15.5757]
[1721204288393,6.2294,160.53,160.48,6.2311]
[1721204288606,1.5575064,160.52,160.48,6.2311]
[1721204288792,1.5575064,160.52,160.48,7.47717502]
[1721204289282,1.5575935,160.51,160.47,22.06035192]
[1721204289599,1.55767557,160.51,160.47,28.29195192]
[1721204290100,1.55767557,160.51,160.47,29.53814869]
[1721204290397,1.55767557,160.51,160.47,21.8103]
[1721204290601,7.78777557,160.51,160.47,15.5787]
[1721204290897,7.78777557,160.51,160.46,22.1271]
[1721204290898,6.2309,160.49,160.46,15.8952]
[1721204291108,1.55798099,160.48,160.46,15.8952]
[1721204291477,1.55798063,160.52,160.47,6.2316]
[1721204291677,7.78791295,160.51,160.46,22.1271]
[1721204291909,7.78851485,160.5,160.46,31.475]
[1721204292204,1.55794781,160.49,160.46,31.475]
[1721204292501,1.55794295,160.48,160.46,15.8952]
[1721204292800,1.55795066,160.49,160.46,15.8952]
[1721204292985,6.2307,160.5,160.46,15.8952]
[1721204293186,1.5579534,160.49,160.46,22.1272]
[1721204293490,1.5579534,160.49,160.46,15.8952]
[1721204294200,1.5579534,160.49,160.46,22.1272]
[1721204294407,6.2302,160.51,160.46,22.1272]
[1721204294583,7.78861265,160.5,160.46,15.8952]
[1721204294789,6.2308,160.5,160.46,15.8952]
[1721204294982,6.2302,160.51,160.46,23.37345039]
[1721204295306,7.78720987,160.53,160.48,6.2311]
[1721204295485,7.78720987,160.53,160.49,6.2309]
[1721204295679,6.229,160.54,160.47,1.24606759]
[1721204295900,1.55753965,160.53,160.47,46.24606759]
[1721204296209,6.2297,160.52,160.47,46.24606759]
[1721204296385,1.55753965,160.53,160.48,6.4013]
[1721204296386,7.78693965,160.53,160.48,6.4013]
[1721204296595,6.2294,160.53,160.48,6.4013]
[1721204296793,6.2301,160.51,160.47,66.8104]
[1721204297397,6.2297,160.52,160.48,6.2312]
[1721204297600,6.2294,160.53,160.48,6.93655352]
[1721204297797,6.2294,160.53,160.48,7.47729956]
[1721204298007,45.4011,160.56,160.46,16.2352]
[1721204298008,1.55762445,160.52,160.46,15.8952]
[1721204298307,6.2307,160.5,160.46,15.8952]
[1721204298502,6.2315,160.48,160.46,15.8952]
[1721204299008,1.55797497,160.53,160.46,15.8952]
[1721204299719,6.2309,160.49,160.46,15.8952]
[1721204300715,6.2306,160.5,160.46,15.8952]
[1721204300885,1.55793821,160.49,160.46,15.8952]
[1721204301714,6.2306,160.5,160.46,15.8952]
[1721204302011,7.78887226,160.49,160.46,15.8952]
[1721204302310,31.1398,160.57,160.43,6.48137579]
[1721204302311,7.78937085,160.48,160.43,12.71447579]
[1721204302514,1.55809265,160.47,160.43,12.71447579]
[1721204304399,1.55809265,160.47,160.44,6.2327]
[1721204304608,7.78939346,160.48,160.43,12.71447579]
[1721204304800,6.2313,160.48,160.43,12.71447579]
[1721204305419,6.2313,160.48,160.43,12.71457579]
[1721204305892,6.2316,160.47,160.43,6.48137579]
[1721204306217,1.55821987,160.46,160.43,6.48137579]
[1721204306398,1.55822341,160.46,160.43,6.48137579]
[1721204306596,15.5748,160.52,160.43,6.48137579]
[1721204306597,6.2317,160.47,160.43,6.48137579]
[1721204306814,1.55822173,160.46,160.43,6.48137579]
[1721204307142,7.79061877,160.45,160.4,6.2341]
[1721204307311,1.55836539,160.44,160.39,0.8364381]
[1721204307659,6.2332,160.43,160.39,0.8364381]
[1721204307914,7.79230222,160.42,160.39,0.8364381]
[1721204308111,6.2333,160.43,160.39,0.8364381]
[1721204308312,1.55860675,160.42,160.39,0.8364381]
[1721204309320,7.79220675,160.42,160.39,0.8364381]
[1721204309727,1.55860843,160.41,160.39,0.8364381]
[1721204309891,7.79260843,160.41,160.39,0.8364381]
[1721204310727,1.55860843,160.41,160.39,0.8364381]
[1721204310933,6.2331,160.44,160.39,0.8364381]
[1721204311100,1.55861397,160.43,160.39,7.0711381]
[1721204311300,7.79231375,160.42,160.39,0.8364381]
[1721204311500,1.55868438,160.41,160.39,0.8364381]
[1721204313216,6.2344,160.4,160.39,0.8364381]
[1721204313538,1.55868438,160.41,160.39,0.8364381]
[1721204313539,7.79278438,160.41,160.39,0.8364381]
[1721204313728,1.55874652,160.42,160.39,0.8364381]
[1721204314039,7.79163677,160.44,160.39,7.0711381]
[1721204314337,6.2332,160.43,160.39,0.8364381]
[1721204314502,7.79222056,160.42,160.39,0.8364381]
[1721204315099,6.2333,160.43,160.39,0.8364381]
[1721204315306,1.55856475,160.42,160.39,0.8364381]
[1721204315619,7.79216536,160.42,160.39,0.8364381]
[1721204315819,6.2336,160.42,160.39,0.8364381]
[1721204316023,1.55856734,160.46,160.39,0.8364381]
[1721204316323,6.234,160.41,160.39,0.8364381]
[1721204316822,6.2335,160.43,160.39,0.8364381]
[1721204317025,1.55862318,160.42,160.39,0.8364381]
[1721204317229,1.55861894,160.46,160.39,0.8364381]
[1721204317404,6.2336,160.42,160.39,0.8364381]
[1721204317812,6.2333,160.43,160.39,2.08331938]
[1721204318430,1.55843312,160.42,160.39,0.8364381]
[1721204318633,6.2341,160.41,160.39,0.8364381]
[1721204318928,17.13993312,160.45,160.39,0.8364381]
[1721204318929,6.2344,160.4,160.39,0.8364381]
[1721204319928,6.234,160.41,160.39,0.8364381]
[1721204320235,6.2337,160.42,160.39,0.8364381]
[1721204321717,6.234,160.41,160.39,0.8364381]
[1721204321912,6.2337,160.42,160.39,0.8364381]
[1721204322712,6.234,160.41,160.39,0.8364381]
[1721204323736,6.2344,160.4,160.39,0.8364381]
[1721204325023,6.234,160.42,160.39,0.8364381]
[1721204325226,6.234,160.42,160.39,2.08325449]
[1721204325411,6.2333,160.43,160.39,2.08325449]
[1721204326110,15.5815,160.45,160.39,2.08325449]
[1721204326111,6.2337,160.42,160.39,2.08325449]
[1721204326417,6.2339,160.42,160.39,2.08325449]
[1721204326844,6.2341,160.41,160.39,0.8364381]
[1721204327535,6.2337,160.42,160.39,0.8364381]
[1721204328834,6.2344,160.4,160.39,0.8364381]
[1721204329346,6.2341,160.41,160.39,0.8364381]
[1721204329516,6.2336,160.43,160.39,0.8364381]
[1721204329721,1.5584264,160.45,160.39,0.8364381]
[1721204329924,6.2341,160.41,160.39,0.8364381]
[1721204330347,6.2337,160.42,160.39,0.8364381]
[1721204330517,6.2341,160.41,160.39,0.8364381]
[1721204330722,6.234,160.41,160.39,0.8364381]
[1721204330918,6.2344,160.4,160.39,0.8364381]
[1721204332554,21.1844,160.4,160.39,0.8364381]
[1721204332919,6.2344,160.4,160.39,0.8364381]
[1721204333516,21.1844,160.4,160.39,0.8364381]
[1721204333740,14.95,160.4,160.39,0.8364381]
[1721204334128,6.2344,160.4,160.39,0.8364381]
[1721204334619,36.1344,160.4,160.39,0.8364381]
[1721204335252,37.69348521,160.4,160.39,0.8364381]
[1721204336346,37.69348521,160.4,160.31,12.67408467]
[1721204336347,8.5525,160.39,160.31,22.03028467]
[1721204336520,6.2372,160.33,160.25,16.2406]
[1721204336716,6.2376,160.32,160.27,6.43838242]
[1721204336943,6.2376,160.32,160.27,27.62768242]
[1721204337320,21.1875,160.32,160.27,27.62768242]
[1721204337620,21.1875,160.32,160.27,12.67768242]
[1721204337821,14.95,160.32,160.27,5.93838242]
[1721204338123,14.95,160.32,160.29,6.2386]
[1721204338428,14.95,160.33,160.29,6.2386]
[1721204338641,14.95,160.33,160.28,14.95]
[1721204338642,14.95,160.33,160.28,6.2389]
[1721204338833,16.50945824,160.33,160.29,6.2384]
[1721204339230,14.95,160.33,160.3,51.238]
[1721204339619,16.50936967,160.34,160.31,6.2378]
[1721204340448,1.55926929,160.38,160.33,15.9713]
[1721204340655,14.95,160.37,160.34,51.2366]
[1721204340955,16.50926929,160.38,160.34,51.2366]
[1721204341134,16.50926929,160.38,160.34,6.2366]
[1721204341333,21.1855,160.38,160.33,30.9213]
[1721204341947,14.95,160.38,160.34,6.2367]
[1721204342174,14.95,160.38,160.35,6.2361]
[1721204342466,1.55890084,160.42,160.37,6.2355]
[1721204342629,6.2336,160.42,160.36,14.95]
[1721204342835,14.95,160.41,160.36,21.1859]
[1721204343071,21.184,160.41,160.36,21.8253]
[1721204343246,6.2337,160.42,160.37,6.2354]
[1721204343439,1.55860241,160.45,160.37,14.95]
[1721204343647,14.95,160.42,160.37,14.95]
[1721204343958,21.1837,160.42,160.37,22.43202977]
[1721204344372,16.50851519,160.41,160.34,6.2366]
[1721204344660,14.95,160.39,160.34,14.95]
[1721204345038,14.95,160.39,160.35,7.48320043]
[1721204345238,21.1848,160.39,160.34,14.95]
[1721204345448,21.1848,160.39,160.35,1.24704804]
[1721204345653,21.1848,160.39,160.36,1.24697027]
[1721204346045,14.95,160.39,160.36,1.24697027]
[1721204346243,16.50881292,160.39,160.33,46.5136]
[1721204346466,6.2353,160.38,160.34,45.81950477]
[1721204346655,21.1849,160.39,160.34,52.05610477]
[1721204346859,21.1849,160.39,160.34,51.2366]
[1721204347168,1.55887109,160.43,160.35,22.43329452]
[1721204347469,21.1845,160.4,160.36,7.48286081]
[1721204347844,14.95,160.41,160.36,16.19696081]
[1721204348157,6.2341,160.41,160.37,59.95]
[1721204348355,16.50855662,160.41,160.37,45.0]
[1721204348560,16.50855662,160.41,160.38,15.5874]
[1721204348768,16.50855662,160.41,160.36,59.95]
[1721204348769,14.95,160.41,160.37,6.2354]
[1721204349146,6.2341,160.41,160.37,14.95]
[1721204349464,21.1836,160.42,160.37,6.2355]
[1721204349662,14.95,160.41,160.37,6.2355]
[1721204350178,21.184,160.41,160.37,6.2355]
[1721204350375,6.235,160.39,160.35,30.5403]
[1721204350669,1.55853724,160.4,160.35,30.5403]
[1721204350670,7.79303724,160.4,160.35,21.8263]
[1721204350965,14.95,160.39,160.35,21.8263]
[1721204351173,21.1855,160.38,160.33,22.2081]
[1721204351353,21.186,160.36,160.33,15.9713]
[1721204352273,7.79544115,160.35,160.31,6.2378]
[1721204352485,7.79544115,160.35,160.31,7.48520229]
[1721204352486,14.95,160.35,160.31,7.48520229]
[1721204352645,16.50922573,160.35,160.31,7.48520229]
[1721204352841,16.50925286,160.35,160.31,7.48520229]
[1721204353074,14.95,160.35,160.31,7.48520229]
[1721204353259,16.5092235,160.35,160.31,6.2378]
[1721204354173,16.5092235,160.35,160.29,46.9275]
[1721204354174,14.95,160.33,160.29,38.2158]
[1721204354360,1.55949198,160.32,160.29,38.216]
[1721204354669,1.55949198,160.37,160.29,38.216]
[1721204355077,6.2367,160.34,160.29,38.216]
[1721204355378,7.79667889,160.33,160.29,15.5964]
[1721204355691,7.79714077,160.32,160.27,6.2393]
[1721204355984,6.2371,160.33,160.28,6.2389]
[1721204356182,1.55958395,160.32,160.28,6.2389]
[1721204356387,1.55958395,160.35,160.3,6.2381]
[1721204356590,6.2371,160.33,160.28,6.2388]
[1721204356892,1.55958345,160.32,160.28,21.836]
[1721204357094,1.55958345,160.32,160.24,0.03919291]
[1721204357262,6.2387,160.29,160.25,15.6]
[1721204357468,52.1702,160.34,160.24,0.03919291]
[1721204357469,7.79907569,160.28,160.24,0.03919291]
[1721204357680,1.55995366,160.27,160.24,0.03919291]
[1721204358064,52.1702,160.34,160.24,0.03919291]
[1721204358065,1.56003874,160.26,160.24,0.03919291]
[1721204358386,1.56009723,160.29,160.24,0.03919291]
[1721204358775,7.79909723,160.29,160.24,6.27969291]
[1721204359104,1.56009723,160.29,160.24,0.03919291]
[1721204359264,12.7925,160.25,160.23,0.8364381]
[1721204359472,9.01867111,160.24,160.23,0.8364381]
[1721204360186,9.01867111,160.24,160.23,3.81e-05]
[1721204360661,1.56047111,160.24,160.23,3.81e-05]
[1721204360866,31.490398,160.27,160.23,3.81e-05]
[1721204361095,6.2402,160.25,160.23,3.81e-05]
[1721204361400,1.56025801,160.26,160.23,3.81e-05]
[1721204361561,6.2397,160.27,160.23,3.81e-05]
[1721204361897,6.2403,160.25,160.23,3.81e-05]
[1721204362069,1.56042702,160.24,160.23,3.81e-05]
[1721204362476,7.80102702,160.24,160.23,3.81e-05]
[1721204363092,6.2406,160.24,160.23,3.81e-05]
[1721204363502,7.80143581,160.24,160.23,3.81e-05]
[1721204363789,1.56083581,160.24,160.23,3.81e-05]
[1721204364172,7.80143581,160.24,160.23,3.81e-05]
[1721204364507,1.56083581,160.24,160.23,3.81e-05]
[1721204365174,7.80143581,160.24,160.23,3.81e-05]
[1721204366184,1.56083581,160.24,160.23,3.81e-05]
[1721204366383,7.8012186,160.24,160.23,3.81e-05]
[1721204366582,1.5606186,160.24,160.23,3.81e-05]
[1721204366996,29.93,160.27,160.23,3.81e-05]
[1721204367203,6.2406,160.24,160.23,3.81e-05]
[1721204367411,7.80121195,160.24,160.23,3.81e-05]
[1721204367900,1.56061195,160.24,160.23,3.81e-05]
[1721204368216,7.80121195,160.24,160.23,3.81e-05]
[1721204368700,1.56061195,160.24,160.23,3.81e-05]
[1721204368906,7.80121195,160.24,160.23,3.81e-05]
[1721204370309,37.73121195,160.24,160.23,3.81e-05]
[1721204371294,6.2437,160.17,160.11,28.0712]
[1721204371500,29.93,160.19,160.11,37.4394]
[1721204371804,29.93,160.19,160.11,36.1695]
[1721204371805,1.49022681,160.18,160.11,36.1695]
[1721204372131,6.2439,160.16,160.11,15.6137]
[1721204372421,1.49022681,160.15,160.11,21.8592]
[1721204372625,1.49022681,160.14,160.12,6.2451]
[1721204372796,6.2434,160.17,160.12,6.2451]
[1721204372797,1.49022681,160.16,160.12,6.2451]
[1721204372995,7.73402681,160.16,160.11,21.8593]
[1721204373200,1.49022681,160.15,160.05,29.93]
[1721204373421,1.49022681,160.18,160.05,29.93]
[1721204373600,1.49022681,160.17,160.05,29.93]
[1721204373799,1.49022681,160.17,160.15,15.6097]
[1721204374009,1.49022681,160.17,160.15,21.8536]
[1721204374216,1.49022681,160.19,160.15,21.8534]
[1721204374399,1.49022681,160.2,160.15,15.6097]
[1721204374605,1.49022681,160.24,160.17,15.6078]
[1721204374815,1.49022681,160.24,160.19,6.2424]
[1721204374816,1.49022681,160.23,160.19,6.2424]
[1721204375331,7.73132681,160.23,160.17,21.8508]
[1721204375499,6.2418,160.21,160.17,15.6078]
[1721204375830,1.49022681,160.2,160.17,15.6078]
[1721204376036,7.73202681,160.21,160.17,15.6078]
[1721204376209,1.49022681,160.19,160.15,6.244]
[1721204376411,7.73272681,160.19,160.13,6.4783]
[1721204376609,1.49022681,160.18,160.13,6.4783]
[1721204377138,1.49022681,160.19,160.13,6.4783]
[1721204377309,1.49022681,160.21,160.17,6.243]
[1721204377632,7.73242681,160.2,160.15,21.8536]
[1721204377822,1.49022681,160.19,160.15,21.8536]
[1721204378035,7.73282681,160.19,160.15,15.6096]
[1721204378213,7.73282681,160.19,160.14,6.2444]
[1721204378214,15.6032,160.23,160.12,15.4012]
[1721204378409,6.2434,160.17,160.12,21.6463]
[1721204378722,6.2427,160.19,160.14,6.2445]
[1721204379218,1.49022681,160.18,160.13,21.8564]
[1721204379426,7.73362681,160.17,160.13,15.6116]
[1721204379614,1.49022681,160.16,160.13,15.6116]
[1721204379935,6.2434,160.17,160.12,21.6464]
[1721204380111,7.73392681,160.16,160.12,15.4012]
[1721204380429,1.49022681,160.15,160.12,15.4012]
[1721204380731,1.49022681,160.21,160.12,15.4012]
[1721204380935,6.2436,160.17,160.12,6.2452]
[1721204381233,15.6226,160.21,160.1,21.8608]
[1721204381234,6.2442,160.15,160.1,21.8608]
[1721204381407,1.49022681,160.14,160.1,21.8608]
[1721204381610,7.73492681,160.14,160.1,15.6148]
[1721204381935,1.49022681,160.17,160.1,15.6148]
[1721204382110,45.5526,160.21,160.12,15.6125]
[1721204382309,1.49022681,160.2,160.16,6.2434]
[1721204382526,1.49022681,160.23,160.09,0.58983427]
[1721204382737,1.49022681,160.23,160.18,15.6069]
[1721204383126,1.49022681,160.23,160.16,15.2762]
[1721204383422,1.49022681,160.23,160.18,6.2429]
[1721204383813,1.49022681,160.22,160.19,6.2425]
[1721204384013,1.49022681,160.23,160.17,60.6077]
[1721204384318,1.49022681,160.24,160.21,6.2417]
[1721204384519,1.49022681,160.23,160.21,6.2417]
[1721204384844,1.49022681,160.25,160.18,0.17]
[1721204385133,7.72932681,160.28,160.23,6.2407]
[1721204385342,1.49022681,160.28,160.21,15.6038]
[1721204385546,1.49022681,160.28,160.18,15.947]
[1721204385722,6.2403,160.25,160.2,6.2421]
[1721204385930,1.49022681,160.24,160.21,45.0]
[1721204386132,1.49022681,160.28,160.2,15.6048]
[1721204386756,29.93,160.27,160.17,6.1092]
[1721204387058,6.2413,160.23,160.18,6.2428]
[1721204387231,6.2405,160.25,160.2,21.8474]
[1721204387428,29.93,160.27,160.14,8.85001208]
[1721204387429,7.73092681,160.24,160.19,6.2422]
[1721204387760,1.49022681,160.26,160.14,6.5559]
[1721204387924,1.49022681,160.26,160.14,36.4859]
[1721204388125,1.49022681,160.26,160.17,45.34]
[1721204388424,1.49022681,160.28,160.23,6.241]
[1721204388644,6.2399,160.26,160.22,15.6029]
[1721204388833,1.49022681,160.25,160.19,21.8481]
[1721204389040,6.2406,160.24,160.2,45.0]
[1721204389421,6.2399,160.26,160.21,6.2417]
[1721204389627,6.2397,160.27,160.2,45.0]
[1721204389852,1.49022681,160.26,160.22,51.2413]
[1721204390057,7.73022681,160.26,160.22,45.0]
[1721204390361,1.49022681,160.26,160.22,45.0]
[1721204390640,6.2401,160.26,160.22,45.0]
[1721204390855,1.49022681,160.25,160.18,15.607]
[1721204391053,6.2426,160.19,160.15,15.6099]
[1721204391257,6.2422,160.2,160.15,21.854]